{"text_format":"1","workbook":"xlsx","n_sheets":3,"sheets":["Анкета ","Додаток EU4BUSINESS SMECI","Lookups111"],"not_rendered":{"charts":0,"images":0,"macros":0,"external_links":0,"defined_names":27,"comments":0,"pivot_tables":0},"unopened":[],"bounds":{"document_bytes":16777216,"sheet_cells":100000,"rows_first":2000,"rows_last":500,"rows_between":2000,"halvings":0,"cell_chars":16384,"cell_head_chars":4096},"cells_cut":0,"cells_raw":0,"read":"whole","date_system":"1900"}

{"sheet":"Анкета ","index":0,"n_rows":86,"n_cols":40,"rows_kept":86,"cut":false,"hidden":false,"merged":[[65,34,70,34],[43,34,57,34],[9,34,14,34],[59,34,62,34],[10,23,10,27],[10,28,10,31],[10,32,10,33],[34,17,34,33],[6,17,6,33],[9,3,9,33],[10,3,10,6],[10,7,10,12],[10,13,10,15],[10,16,10,18],[10,19,10,22],[14,3,14,6],[14,7,14,12],[14,13,14,15],[14,16,14,18],[14,19,14,22],[14,23,14,27],[14,28,14,31],[14,32,14,33],[12,3,12,33],[13,3,13,6],[13,7,13,12],[13,13,13,15],[13,16,13,18],[13,19,13,22],[13,23,13,27],[13,28,13,31],[13,32,13,33],[33,3,33,16],[21,17,21,33],[21,3,21,16],[26,3,26,16],[26,17,26,33],[25,3,25,16],[25,17,25,33],[34,3,34,16],[34,0,34,2],[36,0,36,2],[35,3,35,33],[11,3,11,6],[11,7,11,12],[11,13,11,15],[11,16,11,18],[11,19,11,22],[11,23,11,27],[11,28,11,31],[11,32,11,33],[36,17,36,33],[33,17,33,33],[32,3,32,13],[32,14,32,16],[32,17,32,33],[25,0,25,2],[29,0,29,2],[29,3,29,16],[29,17,29,33],[28,0,28,2],[24,3,24,33],[20,17,20,33],[70,0,70,2],[70,3,70,5],[70,6,70,33],[38,0,38,2],[38,17,38,33],[30,0,31,2],[31,3,31,13],[31,14,31,16],[37,17,37,33],[31,17,31,33],[30,3,30,33],[58,19,58,33],[33,0,33,2],[56,17,56,18],[46,17,46,18],[46,19,46,33],[47,19,47,33],[49,17,49,18],[48,19,48,33],[52,17,52,33],[39,3,39,16],[39,17,39,20],[39,21,39,24],[39,25,39,28],[27,0,27,2],[27,3,27,16],[27,17,27,33],[68,3,68,5],[68,6,68,33],[58,3,58,16],[58,17,58,18],[63,0,63,2],[58,0,58,2],[50,17,50,18],[50,19,50,33],[51,17,51,18],[53,17,53,18],[53,3,57,16],[54,17,54,18],[51,19,51,33],[53,19,53,33],[52,3,52,16],[65,3,65,5],[65,6,65,33],[67,3,67,5],[63,3,63,4],[56,19,56,33],[43,3,47,16],[84,2,84,6],[84,7,84,12],[84,13,84,16],[84,25,84,33],[85,25,85,33],[77,0,77,33],[78,0,78,33],[79,0,79,33],[83,0,83,33],[81,0,81,33],[85,18,85,23],[82,0,82,33],[39,29,39,33],[41,3,41,16],[41,17,41,20],[41,21,41,24],[41,25,41,28],[41,29,41,33],[3,0,3,2],[3,3,3,16],[84,18,84,23],[72,0,72,33],[73,0,73,33],[3,17,3,33],[4,0,4,2],[15,3,15,16],[43,0,47,2],[44,19,44,33],[43,17,43,18],[8,0,8,2],[8,3,8,16],[8,17,8,33],[63,5,63,25],[69,0,69,2],[65,0,65,2],[66,0,66,2],[67,0,67,2],[68,0,68,2],[66,3,66,5],[66,6,66,33],[63,26,63,33],[37,3,37,16],[0,0,1,30],[18,3,18,16],[18,17,18,33],[22,3,22,33],[23,3,23,16],[23,17,23,33],[2,0,2,2],[2,3,2,16],[2,17,2,33],[4,17,4,33],[5,17,5,33],[16,0,16,2],[5,0,5,2],[4,3,4,16],[5,3,5,16],[6,3,6,16],[23,0,23,2],[20,0,20,2],[15,0,15,2],[19,3,19,16],[20,3,20,16],[15,22,15,33],[15,17,15,21],[17,0,17,2],[71,0,71,33],[80,3,80,33],[74,0,74,33],[48,0,51,2],[48,3,51,16],[43,19,43,33],[44,17,44,18],[48,17,48,18],[54,19,54,33],[55,17,55,18],[55,19,55,33],[75,0,75,33],[76,0,76,33],[69,3,69,5],[69,6,69,33],[57,17,57,18],[57,19,57,33],[53,0,57,2],[52,0,52,2],[45,17,45,18],[45,19,45,33],[49,19,49,33],[47,17,47,18],[67,6,67,33],[39,35,39,38],[39,39,39,46],[40,3,40,16],[40,25,40,28],[40,29,40,33],[40,35,40,38],[40,39,40,46],[41,35,41,38],[41,39,41,46],[42,3,42,16],[42,17,42,20],[42,21,42,24],[42,25,42,28],[42,29,42,33],[42,35,42,38],[42,39,42,46],[59,3,62,16],[59,17,59,18],[60,17,60,18],[61,17,61,18],[62,17,62,18],[59,19,59,33],[60,19,60,33],[61,19,61,33],[62,19,62,33],[7,0,7,2],[7,3,7,16],[7,17,7,33],[19,0,19,2],[40,17,40,20],[40,21,40,24],[38,3,38,16],[36,3,36,16],[28,17,28,33],[37,0,37,2],[17,3,17,16],[16,3,16,16],[16,17,16,33],[26,0,26,2],[28,3,28,16],[17,17,17,33],[19,17,19,33]]}
["Анкета-заява на отримання кредитних коштів"]
[]
["№",null,null,"Дані про заявника та його діяльність",null,null,null,null,null,null,null,null,null,null,null,null,null,"Інформація"]
[1,null,null,"Організаційна форма заявника",null,null,null,null,null,null,null,null,null,null,null,null,null,"ФОП/ЮО"]
[{"$f":"#REF!+1","v":{"$error":"#REF!"}},null,null,"Назва заявника (ФОП ПІБ)/ Назва юр.особи"]
[{"$f":"A5+1","v":{"$error":"#REF!"}},null,null,"Реєстраційний номер облікової картки/ЄДРПОУ заявника"]
[null,null,null,"Контактна особа"]
[{"$f":"#REF!+1","v":{"$error":"#REF!"}},null,null,"Мобільний телефон "]
[{"$f":"A8+1","v":{"$error":"#REF!"}},null,null,"Адреса електронної пошти"]
[null,null,null,"Засновники для ЮО"]
[null,null,null,"Тип клієнта",null,null,null,"Назва організації",null,null,null,null,null,"ІПН відсутній",null,null,"Номер паспорта",null,null,"ІПН/ЄДРПОУ",null,null,null,"Прізвище",null,null,null,null,"Ім’я",null,null,null,"По батькові"]
[]
[null,null,null,"Бенефіціари для ЮО"]
[null,null,null,"Тип клієнта",null,null,null,"Назва організації",null,null,null,null,null,"ІПН відсутній",null,null,"Номер паспорта",null,null,"ІПН/ЄДРПОУ",null,null,null,"Прізвище",null,null,null,null,"Ім’я",null,null,null,"По батькові"]
[]
[{"$f":"#REF!+1","v":{"$error":"#REF!"}},null,null,"Основний вид діяльності",null,null,null,null,null,null,null,null,null,null,null,null,null,"11.07",null,null,null,null,"Виробництво безалкогольних напоїв; виробництво мінеральних вод та інших вод, розлитих у пляшки"]
[{"$f":"A16+1","v":{"$error":"#REF!"}},null,null,"Дата реєстрації",null,null,null,null,null,null,null,null,null,null,null,null,null,"2008-07-28"]
[{"$f":"#REF!+1","v":{"$error":"#REF!"}},null,null,"Адреса реєстрації"]
[null,null,null,"Місце ведення діяльності (адреса)"]
[{"$f":"#REF!+1","v":{"$error":"#REF!"}},null,null,"Розмір загального офіційного доходу (без ПДВ) згідно останньої річної звітності (грн.)"]
[{"$f":"A20+1","v":{"$error":"#REF!"}},null,null,"Кількість найманих працівників"]
[null,null,null,"Короткий опис діяльності"]
[null,null,null,"Для АГРО"]
[{"$f":"A23+1","v":1},null,null,"Кількість землі в користуванні, га"]
[null,null,null,"Дані про кредит"]
[{"$f":"#REF!+1","v":{"$error":"#REF!"}},null,null,"Банківський продукт"]
[{"$f":"#REF!+1","v":{"$error":"#REF!"}},null,null,"Сума запиту (грн.)"]
[{"$f":"#REF!+1","v":{"$error":"#REF!"}},null,null,"Участь власними коштами (грн.)"]
[{"$f":"A28+1","v":{"$error":"#REF!"}},null,null,"Загальна вартість проекту (грн.)"]
[{"$f":"#REF!+1","v":{"$error":"#REF!"}},null,null,"Строк кредитування, міс."]
[{"$f":"A29+1","v":{"$error":"#REF!"}},null,null,"Цільове призначення"]
[null,null,null,"Опис",null,null,null,null,null,null,null,null,null,null,null,null,null,"Придбання виробничого харчового обладнання для розширення парку місткостей для приготування та зберігання напоїв."]
[null,null,null,"Техніко-економічне обгрунтування (ТЕО) реалізації проєкту"]
[{"$f":"#REF!+1","v":{"$error":"#REF!"}},null,null,"Бажаний розмір щомісячного платежу за запитуваним кредитом"]
[{"$f":"A34+1","v":{"$error":"#REF!"}},null,null,"Запропоноване забезпечення (тип/ найменування/ короткі характеристики), місцезнаходження та орієнтовна ринкова вартість в грн. (в т.ч. порука) "]
[null,null,null,"Загальна інформація"]
[{"$f":"#REF!+1","v":{"$error":"#REF!"}},null,null,"Чи було пошкоджене або зруйноване майно бізнесу внаслідок бойових дій? "]
[{"$f":"A37+1","v":{"$error":"#REF!"}},null,null,"Ступінь пошкодження, якого зазнали активи бізнесу внаслідок бойових дій"]
[{"$f":"#REF!+1","v":{"$error":"#REF!"}},null,null,"Чи переміщались виробничі потужності/майно бізнесу під час бойових дій до більш безпечних регіонів України?"]
[null,null,null,"Наявність кредитів в Банках (загальний розмір, гривневий екв.)",null,null,null,null,null,null,null,null,null,null,null,null,null,"Позичальник",null,null,null,"Кредитор",null,null,null,"Дата видачі кредиту",null,null,null,"Дата погашення кредиту",null,null,null,null,"Сума кредиту (гривневий екв.)",null,null,null,null,"Місячний платіж по кредиту (грн)"]
[]
[]
[]
[28,null,null,"Використання нерухомого майна в бізнесі",null,null,null,null,null,null,null,null,null,null,null,null,null,null,null,"ведення бізнесу не потребує використання комерційної нерухомості"]
[null,null,null,null,null,null,null,null,null,null,null,null,null,null,null,null,null,"X",null,{"$f":"IF(R4=\"ЮО\",\"нерухомість, що використовується в бізнесі, в особистій власності (в т.ч. засновників/бенефіціарів)\",\"нерухомість що використовується в бізнесі, в особистій власності (в т.ч. подружжя)\")","v":"нерухомість що використовується в бізнесі, в особистій власності (в т.ч. подружжя)"}]
[null,null,null,null,null,null,null,null,null,null,null,null,null,null,null,null,null,null,null,{"$f":"IF(R4=\"ЮО\",\"нерухомість що використовується в бізнесі, у власності членів ГПК\",\"нерухомість що використовується в бізнесі, у власності родичів (діти, батьки) та/або поручителя\")","v":"нерухомість що використовується в бізнесі, у власності родичів (діти, батьки) та/або поручителя"}]
[null,null,null,null,null,null,null,null,null,null,null,null,null,null,null,null,null,null,null,"нерухомість що використовується в бізнесі, в оренді більше року"]
[null,null,null,null,null,null,null,null,null,null,null,null,null,null,null,null,null,null,null,"нерухомість що використовується в бізнесі, в оренді до року"]
[29,null,null,"Використання транспортних засобів в бізнесі",null,null,null,null,null,null,null,null,null,null,null,null,null,null,null,"ведення бізнесу не потребує використання транспортних засобів"]
[null,null,null,null,null,null,null,null,null,null,null,null,null,null,null,null,null,"X",null,{"$f":"IF(R4=\"ЮО\",\"транспортні засоби, що використовуються в бізнесі, в особистій власності (в т.ч. засновників/бенефіціарів)\",\"транспортні засоби, що використовуються в бізнесі, в особистій власності (в т.ч. подружжя)\")","v":"транспортні засоби, що використовуються в бізнесі, в особистій власності (в т.ч. подружжя)"}]
[null,null,null,null,null,null,null,null,null,null,null,null,null,null,null,null,null,null,null,"транспортні засоби, що використовуються в бізнесі, у власності родичів (діти, батьки) та/або поручителя"]
[null,null,null,null,null,null,null,null,null,null,null,null,null,null,null,null,null,null,null,"транспортні засоби, що використовуються в бізнесі, орендуються"]
[30,null,null,"Сімейний стан для ФОП"]
[33,null,null,"Наявність активів у власності",null,null,null,null,null,null,null,null,null,null,null,null,null,"X",null,{"$f":"IF(R4=\"ЮО\",\"житлова нерухомість у власності (в т.ч. засновників/бенефіціарів)\",\"житлова нерухомість (місце проживання) у власності (в т.ч. подружжя в офіційному шлюбі)\")","v":"житлова нерухомість (місце проживання) у власності (в т.ч. подружжя в офіційному шлюбі)"}]
[null,null,null,null,null,null,null,null,null,null,null,null,null,null,null,null,null,null,null,"житлова нерухомість (місце проживання) у власності родичів (діти, батьки) та/або поручителя"]
[null,null,null,null,null,null,null,null,null,null,null,null,null,null,null,null,null,null,null,"житлова нерухомість в оренді"]
[null,null,null,null,null,null,null,null,null,null,null,null,null,null,null,null,null,"X",null,{"$f":"IF(R4=\"ЮО\",\"транспортні засоби у власності (в т.ч. засновників/бенефіціарів)\",\"транспортні засоби у власності (в т.ч. подружжя в офіційному шлюбі)\")","v":"транспортні засоби у власності (в т.ч. подружжя в офіційному шлюбі)"}]
[null,null,null,null,null,null,null,null,null,null,null,null,null,null,null,null,null,null,null,"транспортні засоби у власності родичів (діти, батьки) та/або поручителя"]
[34,null,null,{"$f":"IF(R4=\"ЮО\",\"Засновники/бенефіціари  належать до політично значущих осіб\",\"Клієнт (в т.ч. члени його сім'і) належать до політично значущих осіб\")","v":"Клієнт (в т.ч. члени його сім'і) належать до політично значущих осіб"},null,null,null,null,null,null,null,null,null,null,null,null,null,"Ні"]
[null,null,null,"Банківські послуги, якими клієнт користується",null,null,null,null,null,null,null,null,null,null,null,null,null,null,null,"відсутні рахунки в банках"]
[null,null,null,null,null,null,null,null,null,null,null,null,null,null,null,null,null,"X",null,"наявний поточний/картковий рахунок в банках"]
[null,null,null,null,null,null,null,null,null,null,null,null,null,null,null,null,null,null,null,"кредити в банках"]
[null,null,null,null,null,null,null,null,null,null,null,null,null,null,null,null,null,null,null,"депозити в банках"]
[null,null,null,"Я,",null,"Я, ПІБ, уповноважений представник [назва компанії], діючи від імені та в інтересах компанії,",null,null,null,null,null,null,null,null,null,null,null,null,null,null,null,null,null,null,null,null,", підтверджую, що:"]
[]
[null,null,null,"X",null,null,"Не знаходжусь та не проваджу свою господарську діяльність на тимчасово окупованій території України (АР Крим та м. Севастополь) або на територіях, які включені до переліку територіальних громад, що розташовані в районі проведення воєнних (бойових) дій або які перебувають в тимчасовій окупації, оточенні (блокуванні), затвердженого Міністерством з питань реінтеграції тимчасово окупованих територій, що підтверджується довідкою про взяття на облік нутрішньо переміщеної особи;"]
[null,null,null,"X",null,null,"Не проваджу господарську діяльність на території Російської Федерації та Республіки Білорусь;"]
[null,null,null,"X",null,null,"До мене не застосовуються спеціальні економічні та інші обмежувальні заходи (санкції), відповідними рішеннями Ради національної безпеки і оборони України, введеними в дію Указом Президента України щодо застосування персональних (спеціальних) економічних та інших обмежувальних заходів (санкцій) відповідно до Закону України \"Про санкції\";"]
[null,null,null,"X",null,null,"Щодо мене не порушено справи про банкрутство та/або не визнано банкрутом, та/або не перебуваю на стадії ліквідації;"]
[null,null,null,"X",null,null,"Щодо мене відсутнє рішення суду, яке набрало законної сили, про притягнення до кримінальної відповідальності за корупційне правопорушення;"]
[null,null,null,"X",null,null,"Відсутня заборгованість перед бюджетом;"]
["До відома Клієнта/ представника Клієнта"]
["Банк залишає за собою право звертатися до будь-якої особи, відомої особи, відомої або невідомої Клієнту, яка, на думку Банка, може посприяти в прийнятті остаточного рішення стосовно надання або не надання кредиту Клієнту. Якщо Клієнт по тим чи іншим причинам не бажає, щоб будь-якій особі стало відомо про цю Анкету, то Клієнту слід вказати ім’я (назву) вказаної особи та причину небажання (наприклад конкурент):______________________________________________________________________________________________"]
["Банк гарантує, що вся інформація, надана Клієнтом, буде використана суто конфіденційно і тільки для прийняття рішення по суті даної кредитної заявки. Клієнт цим підтверджує і гарантує, що вся інформація, яка міститься Анкеті, доданих до неї документах та викладена усно, є правдивою і настільки повною, наскільки відомо Клієнту. Проставляючи свій підпис, Клієнт підтверджує, що він (вона) ознайомлений зі змістом даної Анкети та повністю розуміє її."]
["Підписання цієї заяви підтверджую що ознайомлений зі змістом статті 222 Кримінального кодексу України:"]
["Стаття 222. Шахрайство з фінансовими ресурсами "]
["1. Надання завідомо неправдивої інформації органам державної влади, органам влади Автономної Республіки Крим чи органам місцевого самоврядування, банкам або іншим кредиторам з метою одержання субсидій, субвенцій, дотацій, кредитів чи пільг щодо податків у разі відсутності ознак злочину проти власності - карається штрафом від однієї тисячі до трьох тисяч неоподатковуваних мінімумів доходів громадян з позбавленням права обіймати певні посади чи займатися певною діяльністю на строк до трьох років. "]
["2. Ті самі дії, якщо вони вчинені повторно або завдали великої матеріальної шкоди, - караються штрафом від трьох тисяч до десяти тисяч неоподатковуваних мінімумів доходів громадян із позбавленням права обіймати певні посади або займатися певною діяльністю на строк до трьох років."]
["Згода на збір і надання інформації щодо кредитної історії."]
["Підписанням цієї Анкети, враховуючи вимоги Закону України  «Про організацію формування та обігу кредитних історій» та Закону України «Про банки і банківську діяльність», надаю згоду на передачу, збір, зберігання, використання та поширення інформації, яка складає мою та пов’язаних зі мною осіб кредитну історію, через будь-яке бюро кредитних історій, у тому числі Кредитний реєстр Національного банку України; на доступ до моєї кредитної історії та отримання інформації в повному обсязі кредитної історії у будь-якому бюро кредитних історій, у тому числі Кредитний реєстр Національного банку України."]
[null,null,null,"Підписанням цієї Анкети, компанія підтверджує, що її діяльність здійснюється з урахуванням вимог захисту довкілля, громадського здоров’я та безпеки."]
["Підписанням цієї Анкети, компанія підтверджує, що отримана (з урахуванням групи пов'язаних осіб, які перебувають під спільним володінням та/або контролем) максимальна сукупна сума фінансування за кредитною лінією ЄБРР EU4BUSINESS (з урахуванням цієї Заявки) не перевищує еквівалент 3,000,000.00 (трьох мільйонів) євро"]
["Ніяких інших інвестиційних стимулів/пільг в рамках окремих програм (крім \"Програми 5-7-9\") не отримували / не очікуємо отримати для реалізації даного проекту"]
[]
[null,null,"Дата",null,null,null,null,null,null,null,null,null,null,"року"]
[null,null,null,null,null,null,null,null,null,null,null,null,null,null,null,null,null,null,"Підпис",null,null,null,null,null,null,"ПІБ"]

{"sheet":"Додаток EU4BUSINESS SMECI","index":1,"n_rows":45,"n_cols":33,"rows_kept":45,"cut":false,"hidden":false,"merged":[[34,32,34,36],[32,0,32,2],[32,3,32,31],[32,32,32,36],[33,3,33,31],[33,32,33,36],[35,3,35,31],[35,32,35,36],[39,3,39,31],[30,3,30,31],[29,0,29,2],[29,3,29,31],[29,32,29,36],[31,0,31,2],[31,3,31,31],[31,32,31,36],[33,0,33,2],[36,32,36,36],[37,32,37,36],[38,32,38,36],[39,32,39,36],[34,3,34,31],[4,3,4,22],[43,2,43,6],[43,7,43,12],[43,13,43,16],[43,18,43,23],[36,3,36,31],[37,3,37,31],[38,0,38,2],[39,0,39,2],[38,3,38,31],[36,0,36,2],[37,0,37,2],[35,0,35,2],[34,0,34,2],[30,0,30,2],[6,13,6,18],[43,25,43,36],[44,18,44,23],[44,25,44,36],[40,0,40,36],[42,0,42,36],[30,32,30,36],[16,0,16,2],[17,0,17,2],[16,3,16,36],[17,3,17,12],[17,13,17,18],[17,19,17,22],[28,3,28,31],[28,32,28,36],[28,0,28,2],[17,23,17,27],[17,28,17,31],[17,32,17,36],[27,0,27,2],[27,3,27,36],[26,19,26,22],[6,0,6,2],[5,3,5,36],[6,3,6,12],[5,0,5,2],[15,19,15,22],[6,19,6,22],[6,23,6,27],[6,28,6,31],[6,32,6,36],[0,0,1,30],[2,0,2,2],[2,3,2,36],[3,23,3,27],[3,28,3,31],[3,32,3,36],[3,0,3,22]]}
["Додаток до Анкети-заяви щодо відповідності критеріям EU4BUSINESS SME COMPETITIVENESS AND INCLUSION PROGRAMME IN EASTERN PARTNERSHIP"]
[]
["№",null,null,"Підтвердження статусу МСБ заявника"]
[null,null,null,null,null,null,null,null,null,null,null,null,null,null,null,null,null,null,null,null,null,null,null,"Чисельність працівників станом на 31.12.2025",null,null,null,null,"Річний оборот за 2025 р.",null,null,null,"Валюта річного балансу станом на 31.12.2025"]
[null,null,null,"Інформація про Вашу компанію за останій звітний рік"]
[null,null,null,"Перелік усіх власників (фізичних та юридичних осіб), частка яких у компанії становить 25% або більше"]
[null,null,null,"Ім’я фізособи / Назва организації",null,null,null,null,null,null,null,null,null,"ІПН/ЄДРПОУ",null,null,null,null,null,"Відсоток частки власності",null,null,null,"Чисельність працівників станом на 31.12.2025",null,null,null,null,"Річний оборот за 2025 р.",null,null,null,"Валюта річного балансу станом на 31.12.2025"]
[]
[]
[]
[]
[]
[]
[]
[]
[null,null,null,null,null,null,null,null,null,null,null,null,null,null,null,null,null,null,null,"Всього"]
[null,null,null,"Перелік усіх компаній, власником яких є Ваша компанія або власники Вашої компанії (з часткою 25% або більше)"]
[null,null,null,"Ім’я фізособи / Назва организації",null,null,null,null,null,null,null,null,null,"ІПН/ЄДРПОУ",null,null,null,null,null,"Відсоток частки власності",null,null,null,"Чисельність працівників станом на 31.12.2025",null,null,null,null,"Річний оборот за 2025 р.",null,null,null,"Валюта річного балансу станом на 31.12.2025"]
[]
[]
[]
[]
[]
[]
[]
[]
[null,null,null,null,null,null,null,null,null,null,null,null,null,null,null,null,null,null,null,"Всього"]
["№",null,null,"Підтвердження статусу ветеранського бізнесу"]
[null,null,null,"Ветеранский бизнес - категорія VRW-1",null,null,null,null,null,null,null,null,null,null,null,null,null,null,null,null,null,null,null,null,null,null,null,null,null,null,null,null,"Виберіть один або більше пунктів нижче"]
[null,null,null,"ФОП-ветеран, або"]
[null,null,null,"Більше 50% компанії належить ветерану, або\t\t\t\t\t\t\t\t\t\t\t\t\t"]
[null,null,null,"Керівник - ветеран, або"]
[null,null,null,"Ветерани становлять понад 20% від загальної кількості постійного персоналу в середньому за останні 6 місяців"]
[null,null,null,"Компанія обслуговує ветеранів війни (більше 20% клієнтів або доходів за останні 12 місяців)"]
[null,null,null,"Ветеранский бизнес - категорія VRW-2",null,null,null,null,null,null,null,null,null,null,null,null,null,null,null,null,null,null,null,null,null,null,null,null,null,null,null,null,"Виберіть один або більше пунктів нижче"]
[null,null,null,"ФОП-ветеран, або"]
[null,null,null,"Більше 50% компанії належить найближчому члену сім'ї ветерана (чоловік/дружина, син/дочка або батьки)"]
[null,null,null,"Керівник - найближчий член сім'ї ветерана (чоловік/дружина, син/дочка або батьки)\t\t\t\t\t\t\t\t\t\t\t\t\t\t"]
[null,null,null,"Ветерани становлять понад 10% від загальної кількості постійного персоналу в середньому за останні 6 місяців"]
[null,null,null,"Компанія обслуговує ветеранів війни (більше 10% клієнтів або доходів за останні 12 місяців)"]
["Для підтвердження статусу ветеранського бізнесу надаються:\n•\t(обов’язково) письмове підтвердження від уповноваженого представника вищого керівництва компанії щодо середньої загальної кількості постійних/на повний день працівників за останні 6 місяців та кількості таких працівників, які мають право на статус ветерана війни; та\n•\t(обов’язково) лист-зобов’язання (завірений керівництвом компанії) щодо впровадження заходів, дружніх до ветеранів, та політики реінтеграції ветеранів на основі шаблону та матеріалів, підготовлених консультантами ЄБРР (шаблон та матеріали можна отримати у банків-партнерів); та\n•\tсписок постійних/на повний день працівників із зазначенням типу документа, що підтверджує статус ветерана війни (наприклад, посвідчення ветерана, участі в бойових діях, члена сім’ї загиблого захисника України тощо) та/або Звіт про Єдиний соціальний внесок (ЄСВ) (рядок № 101) та Додатки 1 до нього за кожен місяць кварталу зі списком працівників.\nДо зазначених документів має додаватися будь-який із відповідних сертифікатів:\n•\tучасника бойових дій,\n•\tособи з інвалідністю внаслідок війни,\n•\tучасника війни,\n•\tчлена сім’ї загиблого ветерана війни,\n•\tчлена сім’ї загиблого захисника України,\n•\tпораненого учасника Революції Гідності."]
[]
[]
[null,null,"Дата",null,null,null,null,null,null,null,null,null,null,"року"]
[null,null,null,null,null,null,null,null,null,null,null,null,null,null,null,null,null,null,"Підпис",null,null,null,null,null,null,"ПІБ"]

{"sheet":"Lookups111","index":2,"n_rows":19,"n_cols":3,"rows_kept":19,"cut":false,"hidden":true,"merged":[]}
["KVED"]
["id","text","ratio1"]
[]
[]
["Marital status"]
["id","text"]
[]
[]
["Purpose"]
["id","text"]
[]
[]
["Loan type"]
["id","text"]
[]
[]
[]
["Restricted regions"]
["id","text","type"]